lending/lending_fUSD_20240110
["ID","MTS","AMOUNT","RATE_DAILY","PERIOD"]
[311144914,1704930650759,-1998.08,0.0004,2]
[311144915,1704930650768,-500.0,0.0004,4]
[311144916,1704930650778,-5927.59,0.0004,21]
[311144917,1704930650788,-685.92,0.0004,4]
[311144918,1704930650797,-500.0,0.0004,4]
[311144919,1704930650807,-500.0,0.0004,4]
[311144920,1704930650816,-688.82,0.0004,4]
[311144921,1704930650826,-721.23,0.0004,4]
[311144922,1704930650836,-524.91,0.0004,2]
[311144923,1704930650846,-500.0,0.0004,4]
[311144924,1704930650856,-500.0,0.0004,4]
[311144925,1704930650866,-500.0,0.0004,4]
[311144926,1704930650876,-699.67,0.0004,4]
[311144927,1704930650885,-500.0,0.0004,4]
[311144928,1704930650896,-500.0,0.0004,4]
[311144929,1704930650905,-554.25,0.0004,4]
[311144930,1704930650915,-500.0,0.0004,4]
[311144931,1704930650925,-500.0,0.0004,4]
[311144932,1704930650935,-500.0,0.0004,4]
[311144933,1704930650948,-557.24,0.0004,4]
[311144934,1704930650959,-544.66,0.0004,4]
[311144935,1704930650969,-271.40942983,0.0004,4]
[311144936,1704930650979,-312.88,0.0004,4]
[311144937,1704930650989,-291.663206,0.0004,2]
[311144938,1704930650999,-500.0,0.0004,4]
[311144939,1704930651009,-500.0,0.0004,4]
[311144940,1704930651019,-1352.01,0.0004,4]
[311144941,1704930651029,-500.0,0.0004,4]
[311144942,1704930651039,-500.0,0.0004,4]
[311144943,1704930651048,-980.16,0.0004,4]
[311144944,1704930651057,-500.0,0.0004,4]
[311144945,1704930651066,-500.0,0.0004,4]
[311144946,1704930651076,-500.0,0.0004,4]
[311144947,1704930651086,-500.0,0.0004,4]
[311144948,1704930651096,-500.0,0.0004,4]
[311144949,1704930651107,-500.0,0.0004,4]
[311144950,1704930651117,-589.74,0.0004,14]
[311144951,1704930651127,-1117.31,0.0004,4]
[311144952,1704930651137,-500.0,0.0004,4]
[311144953,1704930651146,-758.69,0.0004,4]
[311144954,1704930651155,-507.48,0.0004,4]
[311144955,1704930651165,-532.71,0.0004,4]
[311144956,1704930651175,-506.09,0.0004,4]
[311144957,1704930651185,-746.81,0.0004,4]
[311144958,1704930651197,-500.0,0.0004,4]
[311144959,1704930651209,-584.0,0.0004,4]
[311144960,1704930651219,-818.52,0.0004,4]
[311144961,1704930651229,-500.0,0.0004,4]
[311144962,1704930651240,-500.0,0.0004,4]
[311144963,1704930651250,-544.62,0.0004,4]
[311144964,1704930651260,-701.9,0.0004,4]
[311144965,1704930651270,-1156.27,0.0004,4]
[311144966,1704930651280,-500.0,0.0004,4]
[311144967,1704930651290,-500.0,0.0004,4]
[311144968,1704930651299,-969.46,0.0004,4]
[311144969,1704930651309,-1923.82,0.0004,4]
[311144970,1704930651318,-300.68,0.0004,2]
[311144971,1704930651327,-535.15,0.0004,4]
[311144972,1704930651337,-500.0,0.0004,4]
[311144973,1704930651347,-500.0,0.0004,4]
[311144974,1704930651356,-500.0,0.0004,4]
[311144975,1704930651366,-522.94,0.0004,4]
[311144976,1704930651410,-500.0,0.0004,4]
[311144977,1704930651419,-1192.59,0.0004,4]
[311144978,1704930651429,-669.83,0.0004,4]
[311144979,1704930651438,-500.0,0.0004,4]
[311144980,1704930651449,-500.0,0.0004,4]
[311144981,1704930651458,-500.0,0.0004,4]
[311144982,1704930651468,-695.51,0.0004,4]
[311144983,1704930651478,-500.0,0.0004,4]
[311144984,1704930651488,-500.0,0.0004,4]
[311144985,1704930651497,-500.0,0.0004,5]
[311144986,1704930651507,-668.02,0.0004,4]
[311144987,1704930651517,-552.24,0.0004,4]
[311144988,1704930651527,-1038.02,0.0004,4]
[311144989,1704930651536,-1139.63,0.0004,4]
[311144990,1704930651545,-500.0,0.0004,30]
[311144991,1704930651555,-738.06,0.0004,4]
[311144992,1704930651564,-1635.48,0.0004,4]
[311144993,1704930651574,-1813.62,0.0004,5]
[311144994,1704930651584,-150.99155862,0.00040047,6]
[311144995,1704930651593,-326.2592589,0.00040063,2]
[311144996,1704930651602,-362.7253912,0.00040063,2]
[311144997,1704930651612,-9093.81313272,0.00040078,2]
[311144998,1704930651621,-3333.40111,0.00040098,8]
[311144999,1704930651631,-176.46,0.0004013,2]
[311145000,1704930651640,-153.72803979,0.00040155,7]
[311145001,1704930651649,-942.129,0.00040175,2]
[311145002,1704930651658,-448.0,0.00040175,2]
[311145003,1704930651667,-219.679,0.00040175,2]
[311145004,1704930651678,-834.0,0.00040175,2]
[311145005,1704930651687,-700.0,0.00040175,2]
[311145006,1704930651698,-1251.0,0.00040175,2]
[311145007,1704930651708,-1234.0,0.00040175,2]
[311145008,1704930651718,-1926.0,0.00040175,2]
[311145009,1704930651726,-1110.237,0.00040175,2]
[311145010,1704930651735,-425.0,0.00040175,2]
[311145011,1704930651746,-505.0,0.00040175,2]
[311145012,1704930651755,-318.0,0.00040175,2]
[311145013,1704930651765,-880.0,0.00040175,2]
[311145014,1704930651774,-235.0,0.00040175,2]
[311145015,1704930651784,-2269.0,0.00040175,2]
[311145016,1704930651793,-3637.532,0.00040175,2]
[311145017,1704930651803,-19648.0,0.00040175,2]
[311145018,1704930651813,-2900.0,0.00040175,2]
[311145019,1704930651822,-150.0,0.00040175,2]
[311145020,1704930651831,-153.72803979,0.00040179,7]
[311145021,1704930651841,-3333.40111,0.00040198,8]
[311145022,1704930651850,-217.0,0.000402,2]
[311145023,1704930651859,-210.0,0.000402,2]
[311145024,1704930651868,-407.77,0.00040211,2]
[311145025,1704930651878,-152.6,0.00040211,2]
[311145026,1704930651888,-309.28,0.00040211,2]
[311145027,1704930651897,-293.76,0.00040211,2]
[311145028,1704930651907,-238.33,0.00040211,2]
[311145029,1704930651916,-150.0,0.00040211,2]
[311145030,1704930651926,-150.0,0.00040211,2]
[311145031,1704930651935,-150.0,0.00040211,2]
[311145032,1704930651944,-150.0,0.00040211,2]
[311145033,1704930651956,-150.0,0.00040211,2]
[311145034,1704930651966,-150.0,0.00040211,2]
[311145035,1704930651975,-500.0,0.00040227,2]
[311145036,1704930651985,-500.0,0.00040273,4]
[311145037,1704930651994,-500.0,0.00040273,4]
[311145038,1704930652003,-233.64113019,0.00040273,7]
[311145039,1704930652013,-500.0,0.00040273,4]
[311145040,1704930652022,-685.92,0.00040273,4]
[311145041,1704930652031,-500.0,0.00040273,4]
[311145042,1704930652041,-500.0,0.00040273,4]
[311145043,1704930652050,-688.82,0.00040273,4]
[311145044,1704930652060,-721.23,0.00040273,4]
[311145045,1704930652070,-524.91,0.00040273,2]
[311145046,1704930652079,-500.0,0.00040273,4]
[311145047,1704930652089,-500.0,0.00040273,4]
[311145048,1704930652099,-500.0,0.00040273,4]
[311145049,1704930652108,-699.67,0.00040273,4]
[311145050,1704930652118,-500.0,0.00040273,4]
[311145051,1704930652127,-500.0,0.00040273,4]
[311145052,1704930652137,-554.25,0.00040273,4]
[311145053,1704930652147,-500.0,0.00040273,4]
[311145054,1704930652156,-500.0,0.00040273,4]
[311145055,1704930652165,-500.0,0.00040273,4]
[311145056,1704930652174,-557.24,0.00040273,4]
[311145057,1704930652184,-544.66,0.00040273,4]
[311145058,1704930652193,-500.0,0.00040273,4]
[311145059,1704930652205,-481.54,0.00040273,4]
[311145060,1704930652214,-1352.01,0.00040273,4]
[311145061,1704930652223,-500.0,0.00040273,4]
[311145062,1704930652233,-500.0,0.00040273,4]
[311145063,1704930652242,-980.16,0.00040273,4]
[311145064,1704930652251,-500.0,0.00040273,4]
[311145065,1704930652259,-500.0,0.00040273,4]
[311145066,1704930652268,-500.0,0.00040273,4]
[311145067,1704930652278,-392.09,0.00040273,4]
[311145068,1704930652287,-500.0,0.00040273,4]
[311145069,1704930652297,-500.0,0.00040273,4]
[311145070,1704930652307,-1117.31,0.00040273,4]
[311145071,1704930652316,-500.0,0.00040273,4]
[311145072,1704930652329,-758.69,0.00040273,4]
[311145073,1704930652339,-507.48,0.00040273,4]
[311145074,1704930652351,-532.71,0.00040273,4]
[311145075,1704930652360,-506.09,0.00040273,4]
[311145076,1704930652369,-746.81,0.00040273,4]
[311145077,1704930652380,-500.0,0.00040273,4]
[311145078,1704930652389,-584.0,0.00040273,4]
[311145079,1704930652399,-818.52,0.00040273,4]
[311145080,1704930652408,-500.0,0.00040273,4]
[311145081,1704930652418,-500.0,0.00040273,4]
[311145082,1704930652427,-544.62,0.00040273,4]
[311145083,1704930652436,-701.9,0.00040273,4]
[311145084,1704930652445,-1156.27,0.00040273,4]
[311145085,1704930652456,-500.0,0.00040273,4]
[311145086,1704930652465,-500.0,0.00040273,4]
[311145087,1704930652474,-969.46,0.00040273,4]
[311145088,1704930652483,-1923.82,0.00040273,4]
[311145089,1704930652492,-535.15,0.00040273,4]
[311145090,1704930652501,-500.0,0.00040273,4]
[311145091,1704930652510,-500.0,0.00040273,4]
[311145092,1704930652520,-500.0,0.00040273,4]
[311145093,1704930652529,-522.94,0.00040273,4]
[311145094,1704930652539,-500.0,0.00040273,4]
[311145095,1704930652548,-1192.59,0.00040273,4]
[311145096,1704930652557,-669.83,0.00040273,4]
[311145097,1704930652566,-215.8,0.00040273,4]
[311145098,1704930652575,-500.0,0.00040273,4]
[311145099,1704930652584,-500.0,0.00040273,4]
[311145100,1704930652593,-695.51,0.00040273,4]
[311145101,1704930652603,-500.0,0.00040273,4]
[311145102,1704930652612,-500.0,0.00040273,4]
[311145103,1704930652622,-500.0,0.00040273,5]
[311145104,1704930652631,-668.02,0.00040273,4]
[311145105,1704930652640,-552.24,0.00040273,4]
[311145106,1704930652650,-1038.02,0.00040273,4]
[311145107,1704930652660,-1139.63,0.00040273,4]
[311145108,1704930652669,-738.06,0.00040273,4]
[311145109,1704930652679,-1635.48,0.00040273,4]
[311145110,1704930652689,-157.0,0.00040274,14]
[311145111,1704930652701,-3333.40111,0.00040298,8]
[311145112,1704930652710,-150.0,0.00040303,2]
[311145113,1704930652719,-150.38353361,0.00040346,7]
[311145114,1704930652729,-262.86,0.00040349,15]
[311145115,1704930652738,-150.38353361,0.00040368,7]
[311145116,1704930652748,-2149.07,0.00040388,7]
[311145117,1704930652757,-2149.07,0.00040388,7]
[311145118,1704930652766,-2149.07,0.00040388,7]
[311145119,1704930652775,-2149.07,0.00040388,7]
[311145120,1704930652785,-3333.40111,0.00040398,10]
[311145121,1704930652794,-178.0,0.0004043,50]
[311145122,1704930652804,-1000.0,0.00040436,10]
[311145123,1704930652813,-1000.0,0.00040436,10]
[311145124,1704930652823,-152.97219112,0.00040439,7]
[311145125,1704930652832,-176.46,0.00040473,2]
[311145126,1704930652842,-150.99155862,0.00040497,8]
[311145127,1704930652852,-3333.40111,0.00040498,10]
[311145128,1704930652861,-4093.62,0.000405,7]
[311145129,1704930652871,-1000.0,0.000405,2]
[311145130,1704930652880,-500.0,0.00040547,4]
[311145131,1704930652889,-500.0,0.00040547,4]
[311145132,1704930652899,-500.0,0.00040547,4]
[311145133,1704930652908,-685.92,0.00040547,4]
[311145134,1704930652918,-500.0,0.00040547,4]
[311145135,1704930652927,-500.0,0.00040547,4]
[311145136,1704930652937,-688.82,0.00040547,4]
[311145137,1704930652949,-721.23,0.00040547,4]
[311145138,1704930652959,-524.91,0.00040547,2]
[311145139,1704930652969,-500.0,0.00040547,4]
[311145140,1704930652979,-500.0,0.00040547,4]
[311145141,1704930652989,-500.0,0.00040547,4]
[311145142,1704930652998,-699.67,0.00040547,4]
[311145143,1704930653009,-500.0,0.00040547,4]
[311145144,1704930653019,-500.0,0.00040547,4]
[311145145,1704930653028,-554.25,0.00040547,4]
[311145146,1704930653039,-500.0,0.00040547,4]
[311145147,1704930653048,-412.80856363,0.00040547,4]
[311145148,1704930653058,-500.0,0.00040547,4]
[311145149,1704930653068,-557.24,0.00040547,4]
[311145150,1704930653077,-544.66,0.00040547,4]
[311145151,1704930653087,-500.0,0.00040547,4]
[311145152,1704930653097,-1352.01,0.00040547,4]
[311145153,1704930653106,-500.0,0.00040547,4]
[311145154,1704930653115,-500.0,0.00040547,4]
[311145155,1704930653125,-980.16,0.00040547,4]
[311145156,1704930653135,-500.0,0.00040547,4]
[311145157,1704930653145,-500.0,0.00040547,4]
[311145158,1704930653155,-500.0,0.00040547,4]
[311145159,1704930653164,-500.0,0.00040547,4]
[311145160,1704930653173,-500.0,0.00040547,4]
[311145161,1704930653183,-1117.31,0.00040547,4]
[311145162,1704930653192,-500.0,0.00040547,4]
[311145163,1704930653204,-507.48,0.00040547,4]
[311145164,1704930653213,-758.69,0.00040547,4]
[311145165,1704930653223,-532.71,0.00040547,4]
[311145166,1704930653232,-506.09,0.00040547,4]
[311145167,1704930653242,-746.81,0.00040547,4]
[311145168,1704930653251,-500.0,0.00040547,4]
[311145169,1704930653261,-584.0,0.00040547,4]
[311145170,1704930653270,-818.52,0.00040547,4]
[311145171,1704930653280,-500.0,0.00040547,4]
[311145172,1704930653291,-500.0,0.00040547,4]
[311145173,1704930653301,-544.62,0.00040547,4]
[311145174,1704930653311,-701.9,0.00040547,4]
[311145175,1704930653320,-1156.27,0.00040547,4]
[311145176,1704930653330,-500.0,0.00040547,4]
[311145177,1704930653340,-500.0,0.00040547,4]
[311145178,1704930653350,-969.46,0.00040547,4]
[311145179,1704930653362,-1923.82,0.00040547,4]
[311145180,1704930653372,-535.15,0.00040547,4]
[311145181,1704930653381,-500.0,0.00040547,4]
[311145182,1704930653391,-500.0,0.00040547,4]
[311145183,1704930653401,-500.0,0.00040547,4]
[311145184,1704930653411,-522.94,0.00040547,4]
[311145185,1704930653420,-500.0,0.00040547,4]
[311145186,1704930653429,-1192.59,0.00040547,4]
[311145187,1704930653439,-669.83,0.00040547,4]
[311145188,1704930653450,-500.0,0.00040547,4]
[311145189,1704930653460,-591.03405559,0.00040547,4]
[311145190,1704930653469,-695.51,0.00040547,4]
[311145191,1704930653479,-500.0,0.00040547,4]
[311145192,1704930653488,-500.0,0.00040547,4]
[311145193,1704930653498,-500.0,0.00040547,5]
[311145194,1704930653507,-668.02,0.00040547,4]
[311145195,1704930653517,-552.24,0.00040547,4]
[311145196,1704930653526,-1038.02,0.00040547,4]
[311145197,1704930653535,-1139.63,0.00040547,4]
[311145198,1704930653545,-738.06,0.00040547,4]
[311145199,1704930653555,-1635.48,0.00040547,4]
[311145200,1704930653564,-175.0,0.00040548,14]
[311145201,1704930653574,-1677.76677478,0.00040578,2]
[311145202,1704930653584,-3333.40111,0.00040598,10]
[311145203,1704930653593,-2000.0,0.000406,2]
[311145204,1704930653602,-22310.02526555,0.00040629,5]
[311145205,1704930653612,-2149.07,0.00040661,7]
[311145206,1704930653622,-2149.07,0.00040661,7]
[311145207,1704930653634,-6838.05163609,0.00040684,2]
[311145208,1704930653643,-3333.40111,0.00040698,10]
[311145209,1704930653653,-4441.0,0.000407,81]
[311145210,1704930653663,-500.0,0.00040714,2]
[311145211,1704930653673,-1000.0,0.00040733,2]
[311145212,1704930653683,-152.97219112,0.00040766,7]
[311145213,1704930653692,-333.40111,0.00040798,8]
[311145214,1704930653704,-308.62,0.000408,4]
[311145215,1704930653714,-308.62,0.000408,4]
[311145216,1704930653723,-308.62,0.000408,4]
[311145217,1704930653733,-308.62,0.000408,4]
[311145218,1704930653742,-308.62,0.000408,4]
[311145219,1704930653752,-308.62,0.000408,4]
[311145220,1704930653762,-308.62,0.000408,4]
[311145221,1704930653772,-308.62,0.000408,4]
[311145222,1704930653782,-308.62,0.000408,4]
[311145223,1704930653792,-308.62,0.000408,4]
[311145224,1704930653802,-308.62,0.000408,4]
[311145225,1704930653812,-308.62,0.000408,4]
[311145226,1704930653822,-308.62,0.000408,4]
[311145227,1704930653832,-308.62,0.000408,4]
[311145228,1704930653842,-308.62,0.000408,4]
[311145229,1704930653852,-308.62,0.000408,4]
[311145230,1704930653862,-308.62,0.000408,4]
[311145231,1704930653872,-308.62,0.000408,4]
[311145232,1704930653881,-308.62,0.000408,4]
[311145233,1704930653891,-308.62,0.000408,4]
[311145234,1704930653901,-176.46,0.00040816,2]
[311145235,1704930653911,-500.0,0.00040821,4]
[311145236,1704930653920,-500.0,0.00040821,4]
[311145237,1704930653930,-500.0,0.00040821,4]
[311145238,1704930653940,-685.92,0.00040821,4]
[311145239,1704930653951,-500.0,0.00040821,4]
[311145240,1704930653960,-500.0,0.00040821,4]
[311145241,1704930653970,-688.82,0.00040821,4]
[311145242,1704930653980,-721.23,0.00040821,4]
[311145243,1704930653990,-524.91,0.00040821,2]
[311145244,1704930654001,-500.0,0.00040821,4]
[311145245,1704930654011,-500.0,0.00040821,4]
[311145246,1704930654022,-500.0,0.00040821,4]
[311145247,1704930654032,-699.67,0.00040821,4]
[311145248,1704930654042,-500.0,0.00040821,4]
[311145249,1704930654052,-500.0,0.00040821,4]
[311145250,1704930654062,-554.25,0.00040821,4]
[311145251,1704930654073,-500.0,0.00040821,4]
[311145252,1704930654083,-500.0,0.00040821,4]
[311145253,1704930654094,-557.24,0.00040821,4]
[311145254,1704930654103,-544.66,0.00040821,4]
[311145255,1704930654114,-500.0,0.00040821,4]
[311145256,1704930654124,-1352.01,0.00040821,4]
[311145257,1704930654134,-500.0,0.00040821,4]
[311145258,1704930654144,-500.0,0.00040821,4]
[311145259,1704930654154,-980.16,0.00040821,4]
[311145260,1704930654164,-500.0,0.00040821,4]
[311145261,1704930654174,-500.0,0.00040821,4]
[311145262,1704930654184,-500.0,0.00040821,4]
[311145263,1704930654194,-500.0,0.00040821,4]
[311145264,1704930654207,-500.0,0.00040821,4]
[311145265,1704930654216,-500.0,0.00040821,4]
[311145266,1704930654226,-1117.31,0.00040821,4]
[311145267,1704930654235,-507.48,0.00040821,4]
[311145268,1704930654245,-758.69,0.00040821,4]
[311145269,1704930654255,-532.71,0.00040821,4]
[311145270,1704930654264,-506.09,0.00040821,4]
[311145271,1704930654274,-746.81,0.00040821,4]
[311145272,1704930654284,-500.0,0.00040821,4]
[311145273,1704930654293,-584.0,0.00040821,4]
[311145274,1704930654303,-818.52,0.00040821,4]
[311145275,1704930654313,-500.0,0.00040821,4]
[311145276,1704930654322,-500.0,0.00040821,4]
[311145277,1704930654332,-544.62,0.00040821,4]
[311145278,1704930654342,-701.9,0.00040821,4]
[311145279,1704930654355,-1156.27,0.00040821,4]
[311145280,1704930654364,-500.0,0.00040821,4]
[311145281,1704930654375,-500.0,0.00040821,4]
[311145282,1704930654384,-969.46,0.00040821,4]
[311145283,1704930654394,-1923.82,0.00040821,4]
[311145284,1704930654404,-535.15,0.00040821,4]
[311145285,1704930654414,-500.0,0.00040821,4]
[311145286,1704930654424,-500.0,0.00040821,4]
[311145287,1704930654433,-553.22929644,0.00040821,4]
[311145288,1704930654444,-522.94,0.00040821,4]
[311145289,1704930654457,-500.0,0.00040821,4]
[311145290,1704930654466,-1192.59,0.00040821,4]
[311145291,1704930654476,-669.83,0.00040821,4]
[311145292,1704930654485,-500.0,0.00040821,4]
[311145293,1704930654495,-695.51,0.00040821,4]
[311145294,1704930654505,-500.0,0.00040821,4]
[311145295,1704930654514,-500.0,0.00040821,4]
[311145296,1704930654524,-500.0,0.00040821,5]
[311145297,1704930654533,-668.02,0.00040821,4]
[311145298,1704930654543,-552.24,0.00040821,4]
[311145299,1704930654552,-1038.02,0.00040821,4]
[311145300,1704930654561,-1139.63,0.00040821,4]
[311145301,1704930654571,-738.06,0.00040821,4]
[311145302,1704930654581,-1635.48,0.00040821,4]
[311145303,1704930654590,-153.84,0.0004085,2]
[311145304,1704930654600,-1072.59473646,0.00040861,30]
[311145305,1704930654609,-150.38353361,0.00040879,7]
[311145306,1704930654619,-333.40111,0.00040898,8]
[311145307,1704930654628,-4093.62,0.000409,7]
[311145308,1704930654638,-1300.61,0.00040908,2]
[311145309,1704930654647,-150.0,0.0004091,2]
[311145310,1704930654656,-2149.07,0.00040935,7]
[311145311,1704930654666,-2149.07,0.00040935,7]
[311145312,1704930654675,-217.0,0.0004094,2]
[311145313,1704930654685,-210.0,0.0004094,2]
[311145314,1704930654695,-150.99155862,0.00040946,10]
[311145315,1704930654707,-682.03350113,0.00040997,2]
[311145316,1704930654716,-333.40111,0.00040998,8]
[311145317,1704930654725,-100000.0,0.00041,8]
[311145318,1704930654734,-800.0,0.00041,2]
[311145319,1704930654744,-300.0,0.00041,2]
[311145320,1704930654754,-476354.76817821,0.00041,7]
[311145321,1704930654763,-168.0,0.00041,30]
[311145322,1704930654773,-10574.0,0.00041,7]
[311145323,1704930654783,-158.0,0.00041,14]
[311145324,1704930654793,-151.0,0.00041,7]
[311145325,1704930654803,-210.496192,0.00041,7]
[311145326,1704930654813,-157.118593,0.00041,7]
[311145327,1704930654823,-151.0,0.00041,7]
[311145328,1704930654832,-151.0,0.00041,7]
[311145329,1704930654842,-151.0,0.00041,7]
[311145330,1704930654852,-150.0,0.00041007,2]
[311145331,1704930654861,-300.0,0.00041032,2]
[311145332,1704930654871,-152.97219112,0.00041038,7]
[311145333,1704930654881,-1500.0,0.00041058,2]
[311145334,1704930654891,-346.10136,0.00041064,7]
[311145335,1704930654900,-1672.91783816,0.00041095,30]
[311145336,1704930654910,-2869.7820205,0.00041095,30]
[311145337,1704930654920,-599.30380028,0.00041095,30]
[311145338,1704930654930,-500.0,0.00041095,30]
[311145339,1704930654940,-500.0,0.00041095,30]
[311145340,1704930654952,-500.0,0.00041095,15]
[311145341,1704930654962,-500.0,0.00041095,15]
[311145342,1704930654971,-500.0,0.00041095,15]
[311145343,1704930654981,-500.0,0.00041095,15]
[311145344,1704930654991,-500.0,0.00041095,15]
[311145345,1704930655000,-500.0,0.00041095,15]
[311145346,1704930655010,-500.0,0.00041095,15]
[311145347,1704930655020,-500.0,0.00041095,15]
[311145348,1704930655029,-500.0,0.00041095,15]
[311145349,1704930655039,-500.0,0.00041095,15]
[311145350,1704930655049,-500.0,0.00041095,15]
[311145351,1704930655059,-685.92,0.00041095,30]
[311145352,1704930655068,-500.0,0.00041095,30]
[311145353,1704930655078,-500.0,0.00041095,30]
[311145354,1704930655087,-688.82,0.00041095,30]
[311145355,1704930655097,-721.23,0.00041095,30]
[311145356,1704930655107,-524.91,0.00041095,2]
[311145357,1704930655117,-500.0,0.00041095,30]
[311145358,1704930655127,-500.0,0.00041095,30]
[311145359,1704930655138,-500.0,0.00041095,30]
[311145360,1704930655283,-699.67,0.00041095,30]
[311145361,1704930655293,-500.0,0.00041095,30]
[311145362,1704930655302,-500.0,0.00041095,30]
[311145363,1704930655311,-554.25,0.00041095,30]
[311145364,1704930655321,-500.0,0.00041095,30]
[311145365,1704930655330,-500.0,0.00041095,30]
[311145366,1704930655340,-557.24,0.00041095,30]
[311145367,1704930655350,-544.66,0.00041095,30]
[311145368,1704930655359,-500.0,0.00041095,30]
[311145369,1704930655368,-1352.01,0.00041095,30]
[311145370,1704930655378,-500.0,0.00041095,30]
[311145371,1704930655387,-500.0,0.00041095,30]
[311145372,1704930655396,-980.16,0.00041095,30]
[311145373,1704930655406,-500.0,0.00041095,30]
[311145374,1704930655415,-500.0,0.00041095,30]
[311145375,1704930655424,-500.0,0.00041095,30]
[311145376,1704930655434,-346.65183682,0.00041095,2]
[311145377,1704930655443,-500.0,0.00041095,30]
[311145378,1704930655453,-500.0,0.00041095,30]
[311145379,1704930655462,-500.0,0.00041095,30]
[311145380,1704930655471,-1117.31,0.00041095,30]
[311145381,1704930655481,-250.0,0.00041095,10]
[311145382,1704930655490,-507.48,0.00041095,30]
[311145383,1704930655500,-758.69,0.00041095,30]
[311145384,1704930655509,-532.71,0.00041095,30]
[311145385,1704930655518,-506.09,0.00041095,30]
[311145386,1704930655527,-746.81,0.00041095,30]
[311145387,1704930655537,-500.0,0.00041095,30]
[311145388,1704930655546,-584.0,0.00041095,30]
[311145389,1704930655555,-500.0,0.00041095,30]
[311145390,1704930655565,-818.52,0.00041095,30]
[311145391,1704930655574,-500.0,0.00041095,30]
[311145392,1704930655584,-544.62,0.00041095,30]
[311145393,1704930655593,-701.9,0.00041095,30]
[311145394,1704930655602,-1156.27,0.00041095,30]
[311145395,1704930655611,-500.0,0.00041095,30]
[311145396,1704930655620,-500.0,0.00041095,30]
[311145397,1704930655629,-969.46,0.00041095,30]
[311145398,1704930655638,-1923.82,0.00041095,30]
[311145399,1704930655648,-535.15,0.00041095,30]
[311145400,1704930655657,-500.0,0.00041095,30]
[311145401,1704930655667,-500.0,0.00041095,30]
[311145402,1704930655676,-522.94,0.00041095,30]
[311145403,1704930655686,-500.0,0.00041095,30]
[311145404,1704930655695,-1192.59,0.00041095,30]
[311145405,1704930655706,-669.83,0.00041095,30]
[311145406,1704930655715,-500.0,0.00041095,30]
[311145407,1704930655724,-695.51,0.00041095,30]
[311145408,1704930655733,-500.0,0.00041095,30]
[311145409,1704930655742,-500.0,0.00041095,30]
[311145410,1704930655751,-1248.16672231,0.00041095,30]
[311145411,1704930655762,-500.0,0.00041095,5]
[311145412,1704930655771,-668.02,0.00041095,30]
[311145413,1704930655781,-552.24,0.00041095,30]